bitfinex/quotes_ETHUSD_20250414
["timestamp","ask_amount","ask_price","bid_price","bid_amount"]
[1744618815315,0.13209272,1633.9,1633.4,5.8833118]
[1744618815316,5.64808,1633.8,1633.4,5.8833118]
[1744618815484,10.54485,1633.8,1633.4,5.8833118]
[1744618815680,0.13209272,1633.9,1633.4,5.8833118]
[1744618815681,0.13123662,1633.7,1633.6,4.89715]
[1744618815892,0.13123662,1633.7,1633.6,8.90817127]
[1744618816102,11.81678,1634.2,1633.8,4.89654]
[1744618816307,11.81678,1634.2,1633.8,4.89637]
[1744618816509,0.12466834,1634.1,1633.9,4.89625]
[1744618816828,0.12466834,1634.1,1633.8,4.89637]
[1744618816983,0.12466834,1634.1,1633.9,0.489637]
[1744618817316,0.17127538,1634.1,1633.9,0.489637]
[1744618819114,5.06693538,1634.1,1633.9,0.489637]
[1744618819611,5.06693538,1634.1,1633.7,9.79352]
[1744618819986,5.06693538,1634.1,1633.7,4.8967]
[1744618820623,5.06693538,1634.1,1633.6,5.78012739]
[1744618820915,4.8965,1633.9,1633.5,4.89735]
[1744618821111,5.71769,1634.0,1633.6,4.89715]
[1744618821312,5.71769,1634.0,1633.7,4.8968]
[1744618821493,5.88937238,1634.0,1633.7,4.8968]
[1744618821983,5.88937238,1634.0,1633.6,5.65015]
[1744618822179,4.89628,1633.9,1633.5,4.89743]
[1744618822525,10.55868,1633.6,1633.2,8.2226187]
[1744618822721,4.89749,1633.5,1633.2,7.4021187]
[1744618822945,4.89749,1633.5,1633.2,2.5038987]
[1744618823698,9.79516,1633.5,1633.2,2.5038987]
[1744618824110,4.89777,1633.4,1633.2,2.5038987]
[1744618825034,4.89876,1633.1,1632.7,11.19982]
[1744618825326,4.89876,1633.1,1632.7,11.19973]
[1744618825488,9.79764,1633.1,1632.7,11.19973]
[1744618825688,4.89899,1633.0,1632.7,6.3]
[1744618825890,5.69269,1633.0,1632.7,1.690764]
[1744618826101,10.59186,1633.0,1632.6,5.70748]
[1744618826300,4.89926,1632.9,1632.6,5.70748]
[1744618826488,4.89926,1632.9,1632.5,4.90034]
[1744618827087,5.69269,1633.0,1632.5,0.06124922]
[1744618827283,3.7937,1633.0,1632.7,4.89972]
[1744618827520,0.7912,1633.2,1632.9,4.89915]
[1744618827912,5.68973,1633.2,1632.8,5.389502]
[1744618828218,10.58831,1633.2,1632.8,5.389502]
[1744618828414,4.89868,1633.1,1632.8,5.389502]
[1744618828636,0.7912,1633.2,1632.8,5.389382]
[1744618828847,3.7912,1633.2,1632.9,4.89912]
[1744618829022,3.7912,1633.2,1632.9,5.93410469]
[1744618829550,3.7912,1633.2,1632.9,10.83325469]
[1744618829693,11.19877,1633.4,1633.1,4.89865]
[1744618829694,7.1116,1633.4,1633.1,4.89865]
[1744618829989,0.45499191,1633.8,1633.4,4.89773]
[1744618829990,4.89658,1633.8,1633.4,4.89773]
[1744618830192,10.60394,1633.8,1633.4,4.89773]
[1744618830420,5.70718,1633.8,1633.4,4.89773]
[1744618830601,5.70718,1633.8,1633.4,5.877308]
[1744618831830,0.29665421,1633.7,1633.4,5.877308]
[1744618832027,0.29665421,1633.7,1633.4,10.774878]
[1744618832242,0.29665421,1633.7,1633.4,10.83609307]
[1744618832531,0.29665421,1633.7,1633.6,4.89715]
[1744618832723,0.29665421,1633.7,1633.6,5.876592]
[1744618832896,5.66599,1634.1,1633.7,4.89667]
[1744618833096,3.0,1634.0,1633.7,4.89667]
[1744618833597,7.89614,1634.0,1633.6,6.682492]
[1744618833825,7.89614,1634.0,1633.6,4.89697]
[1744618834003,5.66577,1634.1,1633.7,9.79332]
[1744618834205,5.66577,1634.1,1633.7,4.89661]
[1744618834404,10.56166,1634.1,1633.7,4.89661]
[1744618834604,5.66577,1634.1,1633.7,4.89661]
[1744618834998,5.66577,1634.1,1633.6,4.89712]
[1744618834999,7.968785,1634.1,1633.6,4.89712]
[1744618835199,4.89607,1634.0,1633.6,4.89712]
[1744618836467,4.89607,1634.0,1633.5,4.89742]
[1744618836742,4.89638,1633.9,1633.5,4.89742]
[1744618836948,9.79216,1634.0,1633.6,4.89715]
[1744618837349,4.89626,1633.9,1633.6,5.876596]
[1744618837549,4.89626,1633.9,1633.6,0.979446]
[1744618837841,4.89626,1633.9,1633.5,4.89731]
[1744618838265,9.79271,1633.9,1633.5,4.89731]
[1744618838415,4.89626,1633.9,1633.5,4.89731]
[1744618838767,4.89626,1633.9,1633.5,4.89728]
[1744618838916,4.89626,1633.9,1633.6,4.89715]
[1744618839119,4.89626,1633.9,1633.5,4.89728]
[1744618839316,4.89626,1633.9,1633.5,6.0550778]
[1744618839769,4.89656,1633.8,1633.5,6.0550778]
[1744618840054,5.66566,1633.8,1633.5,6.0550778]
[1744618840436,5.66566,1633.8,1633.5,1.1577978]
[1744618840643,10.56246,1633.8,1633.4,6.680698]
[1744618841723,10.56246,1633.8,1633.2,6.77254374]
[1744618841724,4.89716,1633.6,1633.2,5.65873]
[1744618841924,0.7653,1633.5,1633.2,4.89833]
[1744618842132,5.66293,1633.5,1633.1,4.89861]
[1744618842322,5.66293,1633.5,1633.1,4.8986]
[1744618842538,5.66293,1633.5,1633.1,6.584192]
[1744618842856,4.89795,1633.4,1633.0,11.19692]
[1744618843076,4.89795,1633.4,1633.0,11.25799007]
[1744618843555,4.89795,1633.4,1633.0,11.19676]
[1744618843961,9.79591,1633.4,1633.0,11.19676]
[1744618844162,4.89837,1633.2,1632.8,5.69022]
[1744618844459,5.71637,1633.2,1632.8,5.69022]
[1744618844773,0.26759326,1633.1,1632.8,10.58962]
[1744618844919,0.26759326,1633.1,1632.9,4.89922]
[1744618845124,0.818,1633.2,1632.9,4.89922]
[1744618845327,0.26699562,1633.0,1632.9,5.958152]
[1744618845964,5.71656,1633.2,1632.9,1.058932]
[1744618846462,0.26759326,1633.1,1632.9,1.058932]
[1744618846648,5.71656,1633.2,1632.9,1.058932]
[1744618846824,0.26759326,1633.1,1632.9,1.058932]
[1744618847026,5.71656,1633.2,1632.9,1.058932]
[1744618847279,0.26759326,1633.1,1632.8,5.75133684]
[1744618847461,4.89867,1633.1,1632.8,4.8994]
[1744618847670,0.26699562,1633.0,1632.8,4.8994]
[1744618847869,0.26699562,1633.0,1632.8,4.96063685]
[1744618848036,0.26699562,1633.0,1632.7,4.89978]
[1744618848238,0.26699562,1633.0,1632.7,5.961926]
[1744618848436,0.26699562,1633.0,1632.7,10.861616]
[1744618848659,0.26699562,1633.0,1632.8,4.96078688]
[1744618848829,5.71644,1633.2,1632.8,9.86022688]
[1744618849024,4.07259326,1633.1,1632.4,0.7747]
[1744618849230,7.8991,1633.0,1632.6,4.90004]
[1744618849552,5.16587792,1632.9,1632.5,9.8009]
[1744618849860,4.8998,1632.8,1632.4,9.98694588]
[1744618850061,0.26520229,1632.7,1632.4,14.88755588]
[1744618850374,0.26520229,1632.7,1632.4,6.858882]
[1744618850887,0.26520229,1632.7,1632.2,0.826]
[1744618851031,0.26520229,1632.7,1632.1,0.05]
[1744618851032,0.8193,1632.6,1632.1,0.05]
[1744618851236,5.66803,1632.3,1632.1,0.05]
[1744618851435,0.26221193,1632.2,1632.1,0.05]
[1744618853652,0.26221193,1632.2,1632.1,1.40045093]
[1744618853832,7.90021,1632.6,1632.2,4.90127]
[1744618854029,0.26400636,1632.5,1632.2,4.90127]
[1744618854229,0.26400636,1632.5,1632.2,9.80248]
[1744618854871,0.26400636,1632.5,1632.2,4.90121]
[1744618855074,0.26400636,1632.5,1632.2,6.0154121]
[1744618856337,0.26400636,1632.5,1632.2,10.9166121]
[1744618856538,0.26400636,1632.5,1632.2,6.0154021]
[1744618856945,0.26400636,1632.5,1632.2,6.07665971]
[1744618857142,0.26400636,1632.5,1632.2,6.0154021]
[1744618857696,5.16457636,1632.5,1632.2,1.1142021]
[1744618857858,10.06531636,1632.5,1632.1,6.240821]
[1744618858187,5.16457636,1632.5,1632.1,6.240821]
[1744618858756,0.26400636,1632.5,1632.2,4.96261138]
[1744618859058,0.26400636,1632.5,1632.4,4.90075]
[1744618859397,0.7735,1632.7,1632.3,4.90095]
[1744618859551,0.2326198,1632.5,1632.3,6.19392839]
[1744618859756,0.7735,1632.7,1632.3,6.19392839]
[1744618859757,0.7735,1632.7,1632.4,4.90075]
[1744618860150,5.67336,1632.7,1632.4,4.90075]
[1744618860351,3.0,1632.8,1632.5,0.8061]
[1744618860550,3.0,1632.8,1632.6,4.89992]
[1744618860747,4.9001,1632.7,1632.3,5.70705]
[1744618861090,5.70135,1632.6,1632.2,4.90121]
[1744618861249,3.8011,1632.8,1632.4,4.90063]
[1744618861455,3.8011,1632.8,1632.5,4.90023]
[1744618861654,3.8011,1632.8,1632.3,0.7718]
[1744618861655,3.8011,1632.8,1632.4,4.90073]
[1744618861862,8.70078,1632.8,1632.5,4.90044]
[1744618862075,4.89999,1632.7,1632.3,5.67284]
[1744618862385,4.89999,1632.7,1632.3,11.20352891]
[1744618862682,3.8011,1632.8,1632.3,1.40160891]
[1744618862905,3.8011,1632.8,1632.5,4.90026]
[1744618863182,8.70082,1632.8,1632.4,9.80142]
[1744618863383,13.60056,1632.8,1632.4,4.90071]
[1744618864373,8.70082,1632.8,1632.4,9.80136]
[1744618864572,8.70082,1632.8,1632.4,4.90065]
[1744618864889,9.80071,1632.6,1632.2,5.5265991]
[1744618865047,4.90085,1632.4,1632.1,6.256901]
[1744618865247,4.90117,1632.3,1632.1,0.05]
[1744618865552,9.80245,1632.3,1632.1,0.05]
[1744618865752,4.90078,1632.4,1632.1,0.05]
[1744618866007,8.69657,1632.5,1632.2,4.90131]
[1744618866157,13.59721,1632.5,1632.1,4.95154]
[1744618866480,4.90091,1632.4,1632.1,0.05]
[1744618866856,4.90117,1632.3,1632.1,0.05]
[1744618867052,9.80244,1632.3,1632.1,0.05]
[1744618867798,4.90117,1632.3,1632.1,0.05]
[1744618867979,5.881365,1632.3,1632.1,0.05]
[1744618868168,0.8178,1632.2,1632.1,0.05]
[1744618868554,1.04723707,1632.2,1632.1,0.05]
[1744618868760,5.94859707,1632.2,1632.1,0.05]
[1744618872375,1.04723707,1632.2,1632.1,0.05]
[1744618872573,0.22943707,1632.2,1632.1,0.05]
[1744618872864,5.13079707,1632.2,1632.1,0.05]
[1744618873464,0.22943707,1632.2,1632.1,0.05]
[1744618873695,6.17,1632.5,1632.2,4.90115]
[1744618873996,0.22524298,1632.4,1632.1,5.525309]
[1744618874500,0.22524298,1632.4,1632.1,10.426849]
[1744618874690,5.12608298,1632.4,1632.1,4.95154]
[1744618874892,0.22524298,1632.4,1632.1,9.85306]
[1744618875115,0.22524298,1632.4,1632.1,4.95152]
[1744618875323,0.22524298,1632.4,1632.1,0.05]
[1744618875620,5.12611298,1632.4,1632.1,0.05]
[1744618875923,0.22524298,1632.4,1632.1,5.01276412]
[1744618876708,0.22524298,1632.4,1632.2,4.90125]
[1744618876915,16.88502,1632.6,1632.2,4.90125]
[1744618877111,16.88502,1632.6,1632.3,4.90096]
[1744618877112,0.22702671,1632.5,1632.3,4.90096]
[1744618877337,0.22702671,1632.5,1632.3,10.60108]
[1744618877519,0.22702671,1632.5,1632.4,4.90075]
[1744618878321,0.22702671,1632.5,1632.3,5.70012]
[1744618878703,0.22702671,1632.5,1632.2,4.90133]
[1744618878887,5.12747671,1632.5,1632.2,4.90133]
[1744618879088,5.92187671,1632.5,1632.1,11.23105641]
[1744618879288,1.02142671,1632.5,1632.2,4.9012]
[1744618879517,0.22702671,1632.5,1632.2,9.80245]
[1744618879840,5.93704671,1632.5,1632.1,5.74974]
[1744618880127,5.93704671,1632.5,1632.2,4.90135]
[1744618880424,5.93704671,1632.5,1632.1,5.74974]
[1744618880627,5.93704671,1632.5,1632.1,10.65125]
[1744618880839,5.93704671,1632.5,1632.1,11.716375]
[1744618881251,1.03642671,1632.5,1632.2,4.9013]
[1744618881408,1.03642671,1632.5,1632.2,9.80251]
[1744618883097,1.03642671,1632.5,1632.2,4.90121]
[1744618883561,1.03642671,1632.5,1632.2,9.86368856]
[1744618883702,1.03642671,1632.5,1632.3,0.98636886]
[1744618883902,1.03642671,1632.5,1632.2,4.90121]
[1744618884551,5.93688671,1632.5,1632.2,4.90121]
[1744618884747,5.93688671,1632.5,1632.1,5.7497]
[1744618885033,4.90103,1632.4,1632.1,0.05]
[1744618885414,0.22824687,1632.3,1632.1,0.05]
[1744618885612,9.80206,1632.4,1632.1,0.05]
[1744618885819,0.22824687,1632.3,1632.1,0.05]
[1744618886017,5.962176,1632.4,1632.1,0.05]
[1744618886312,0.22824687,1632.3,1632.1,0.05]
[1744618886500,5.962176,1632.4,1632.1,0.05]
[1744618886702,0.22824687,1632.3,1632.2,4.90136]
[1744618886901,11.20118,1632.6,1632.3,4.90098]
[1744618887100,0.2294432,1632.5,1632.3,4.90098]
[1744618887525,0.2294432,1632.5,1632.3,4.90096]
[1744618887836,0.2294432,1632.5,1632.2,4.90131]
[1744618887837,0.2294432,1632.5,1632.2,4.90123]
[1744618888003,0.2294432,1632.5,1632.3,5.391043]
[1744618888208,0.2294432,1632.5,1632.3,10.291953]
[1744618888407,0.2294432,1632.5,1632.3,10.291973]
[1744618888606,0.2294432,1632.5,1632.3,5.391033]
[1744618889105,5.1300232,1632.5,1632.1,4.95144]
[1744618889324,5.1300232,1632.5,1632.1,0.05]
[1744618889325,5.67565,1632.4,1632.1,0.05]
[1744618889530,5.11031159,1632.3,1632.1,0.05]
[1744618891244,10.01156159,1632.3,1632.1,0.05]
[1744618891839,5.11026159,1632.3,1632.1,0.05]
[1744618892207,0.20901159,1632.3,1632.1,0.05]
[1744618892436,5.67559,1632.4,1632.1,0.05]
[1744618892602,0.20901159,1632.3,1632.1,0.05]
[1744618893004,0.7748,1632.4,1632.1,10.66184]
[1744618893612,0.20901159,1632.3,1632.1,10.66184]
[1744618893810,0.7748,1632.4,1632.1,10.66184]
[1744618894339,0.20901159,1632.3,1632.1,0.05]
[1744618894847,10.57661,1632.4,1632.1,0.05]
[1744618895033,0.20841332,1632.2,1632.1,0.05]
[1744618895545,0.7748,1632.4,1632.1,4.95166]
[1744618895739,0.20841332,1632.2,1632.1,10.920648]
[1744618895940,0.7748,1632.4,1632.1,10.920648]
[1744618896121,0.20841332,1632.2,1632.1,6.018988]
[1744618896325,3.0,1632.5,1632.2,4.90107]
[1744618896520,0.20960979,1632.4,1632.3,4.90102]
[1744618896748,7.0766,1632.6,1632.3,6.638929]
[1744618896950,0.20960979,1632.4,1632.3,5.65872]
[1744618897247,0.20933557,1632.4,1632.3,10.62092679]
[1744618897546,7.0766,1632.6,1632.3,5.65865]
[1744618897745,0.20933557,1632.4,1632.3,5.71986665]
[1744618897962,0.7756,1632.6,1632.3,10.62077665]
[1744618898246,6.17,1632.9,1632.4,4.90052]
[1744618898445,0.8283,1633.0,1632.8,4.89943]
[1744618898614,11.687434,1633.2,1632.9,4.89921]
[1744618898615,7.1032,1633.2,1632.9,4.89921]
[1744618899009,7.1032,1633.2,1632.9,10.58766]
[1744618899237,6.299,1633.2,1633.1,4.89865]
[1744618899548,5.69646,1633.4,1633.0,4.89888]
[1744618900419,10.5945,1633.4,1633.0,4.89888]
[1744618900642,4.89817,1633.3,1632.9,0.7893]
[1744618900945,4.89876,1633.1,1632.7,5.68374]
[1744618901155,5.71746,1633.1,1632.7,6.742128]
[1744618901650,5.71746,1633.1,1632.7,11.641788]
[1744618902038,5.71746,1633.1,1632.8,4.89953]
[1744618902216,0.8187,1633.1,1632.8,4.89953]
[1744618902415,0.8187,1633.1,1632.8,9.79895]
[1744618902610,4.89808,1633.3,1632.8,9.79895]
[1744618902611,5.65338,1633.3,1632.9,4.89925]
[1744618902817,5.65338,1633.3,1632.9,9.79832]
[1744618904546,0.21856863,1633.2,1632.9,9.79832]
[1744618905624,0.21856863,1633.2,1633.0,5.76916049]
[1744618905820,0.21856863,1633.2,1633.1,4.89865]
[1744618906049,8.71293,1633.5,1633.1,5.96531105]
[1744618906244,0.20277661,1633.2,1633.1,5.96531105]
[1744618906446,13.61057,1633.5,1633.1,5.96531105]
[1744618906671,0.20277661,1633.2,1633.0,5.70783]
[1744618906833,4.89806,1633.3,1633.0,0.809]
[1744618907366,0.20277661,1633.2,1633.0,5.70794]
[1744618907565,0.20277661,1633.2,1632.9,4.89913]
[1744618907566,4.8994,1632.9,1632.6,0.8293]
[1744618907723,1.31844,1632.9,1632.4,0.8293]
[1744618907927,4.90015,1632.6,1632.1,4.95162]
[1744618908134,4.90076,1632.4,1632.1,0.05]
[1744618908357,9.80245,1632.3,1632.1,0.05]
[1744618908564,4.90136,1632.2,1632.1,0.05]
[1744618908729,0.19426335,1632.2,1632.1,0.05]
[1744618909125,5.09562335,1632.2,1632.1,0.05]
[1744618909781,6.17815268,1632.2,1632.1,0.05]
[1744618911243,9.17815268,1632.2,1632.1,0.05]
[1744618912045,0.19426335,1632.2,1632.1,0.05]
[1744618912448,5.09562335,1632.2,1632.1,0.05]
[1744618913972,0.19426335,1632.2,1632.1,0.05]
[1744618914193,0.19426335,1632.2,1632.1,4.95166]
[1744618914478,10.56819,1632.5,1632.1,4.95166]
[1744618914834,5.09160132,1632.4,1632.1,0.05]
[1744618915141,4.90111,1632.3,1632.1,0.05]
[1744618915342,0.189413,1632.2,1632.1,0.05]
[1744618916674,5.090773,1632.2,1632.1,0.05]
[1744618917856,12.215373,1632.2,1632.1,0.05]
[1744618918069,13.9270213,1632.2,1632.1,0.05]
[1744618918443,8.2000613,1632.2,1632.1,0.05]
[1744618918670,6.488413,1632.2,1632.1,0.05]
[1744618919684,11.389773,1632.2,1632.1,0.05]
[1744618920244,6.488413,1632.2,1632.1,0.05]
[1744618920888,0.189413,1632.2,1632.1,0.05]
[1744618921176,0.189413,1632.2,1632.1,4.95166]
[1744618921386,0.189413,1632.2,1632.1,5.93701]
[1744618921570,11.86196,1632.4,1632.1,5.93701]
[1744618921772,0.18589726,1632.2,1632.1,5.93701]
[1744618921971,11.86196,1632.4,1632.1,1.03535]
[1744618922279,0.18589726,1632.2,1632.1,0.05]
[1744618922486,11.86196,1632.4,1632.1,0.05]
[1744618922849,0.18649571,1632.3,1632.1,0.05]
[1744618923187,11.86196,1632.4,1632.1,0.05]
[1744618923372,0.18589726,1632.2,1632.1,0.05]
[1744618923573,11.86196,1632.4,1632.1,0.05]
[1744618923881,11.86196,1632.4,1632.1,4.9516]
[1744618924181,0.18649571,1632.3,1632.1,4.9516]
[1744618924350,0.18649571,1632.3,1632.1,5.936937]
[1744618924684,0.7912,1632.4,1632.1,5.936937]
[1744618924889,5.69198,1632.4,1632.1,4.9516]
[1744618925180,0.18649571,1632.3,1632.1,4.9516]
[1744618925387,0.18649571,1632.3,1632.1,4.95154]
[1744618925555,14.19716,1632.6,1632.3,4.90105]
[1744618925751,0.18709537,1632.5,1632.2,5.71486]
[1744618926054,9.98838537,1632.5,1632.2,0.8135]
[1744618926488,4.90111,1632.3,1632.1,0.05]
[1744618926886,5.68306,1632.4,1632.1,0.05]
[1744618927457,0.18589881,1632.3,1632.1,0.05]
[1744618927858,0.18530042,1632.2,1632.1,4.95149]
[1744618928084,0.18530042,1632.2,1632.1,0.05]
[1744618928472,9.80236,1632.3,1632.1,0.05]
[1744618928672,0.18530042,1632.2,1632.1,0.05]
[1744618928979,0.18530042,1632.2,1632.1,4.95166]
[1744618929186,0.18530042,1632.2,1632.1,1.11932687]
[1744618929363,4.90131,1632.3,1632.1,0.05]
[1744618929566,0.18530042,1632.2,1632.1,0.05]
[1744618930489,5.08666042,1632.2,1632.1,0.05]
[1744618931094,8.54879536,1632.2,1632.1,0.05]
[1744618931268,12.53153043,1632.2,1632.1,0.05]
[1744618931473,14.90451447,1632.2,1632.1,0.05]
[1744618931873,15.21597798,1632.2,1632.1,0.05]
[1744618932481,0.8298,1631.6,1631.1,0.05]
[1744618932681,4.90428,1631.3,1631.1,0.05]
[1744618932889,4.90436,1631.2,1631.1,0.05]
[1744618933094,5.06593944,1631.2,1631.1,0.05]
[1744618935602,11.36493944,1631.2,1631.1,0.05]
[1744618937181,6.46057944,1631.2,1631.1,0.05]
[1744618938192,6.46057944,1631.2,1631.1,0.8129]
[1744618938391,0.16157944,1631.2,1631.1,5.71756]
[1744618938570,0.16157944,1631.2,1631.1,6.289316]
[1744618938773,11.20218,1631.6,1631.2,4.90429]
[1744618938972,0.14141487,1631.5,1631.2,9.86983657]
[1744618939801,0.14141487,1631.5,1631.2,4.90425]
[1744618940868,5.04489487,1631.5,1631.2,4.90425]
[1744618941275,6.66960236,1631.5,1631.1,5.71754]
[1744618941475,4.90388,1631.4,1631.1,0.8129]
[1744618941908,0.14021679,1631.3,1631.1,0.8129]
[1744618942306,6.52820749,1631.5,1631.1,0.8129]
[1744618942511,11.2022,1631.6,1631.1,5.71737]
[1744618942675,0.14141487,1631.5,1631.2,4.90422]
[1744618942875,5.04489487,1631.5,1631.2,4.90422]
[1744618943095,5.04489487,1631.5,1631.2,4.9043]
[1744618943287,0.14141487,1631.5,1631.2,4.90426]
[1744618943606,0.14141487,1631.5,1631.2,5.53727506]
[1744618944107,0.14141487,1631.5,1631.2,5.475976]
[1744618944311,0.14141487,1631.5,1631.2,4.90426]
[1744618944995,0.14141487,1631.5,1631.2,9.86978708]
[1744618945201,0.14141487,1631.5,1631.2,4.96552708]
[1744618945373,0.14141487,1631.5,1631.2,4.96552663]
[1744618945879,0.14141487,1631.5,1631.3,4.90404]
[1744618946312,11.96531,1631.7,1631.3,4.90404]
[1744618946478,0.14233271,1631.4,1631.3,6.695875]
[1744618946681,53.48888,1631.9,1631.5,4.90327]
[1744618946682,53.489,1631.9,1631.5,4.90327]
[1744618947115,53.489,1631.9,1631.5,9.80659]
[1744618947427,47.774,1631.9,1631.6,4.90308]
[1744618947722,16.10422,1632.0,1631.6,4.90304]
[1744618948036,6.3,1632.0,1631.7,5.71384]
[1744618948182,6.3,1632.2,1631.9,4.90206]
[1744618949596,0.15142484,1632.3,1632.1,9.80318]
[1744618949979,5.72668,1632.5,1632.1,9.80318]
[1744618950209,0.15049982,1632.4,1632.1,4.90155]
[1744618950515,5.05126982,1632.4,1632.0,5.73084]
[1744618950715,5.05126982,1632.4,1632.0,6.794148]
[1744618951009,0.15049982,1632.4,1632.1,4.90163]
[1744618951219,0.15049982,1632.4,1632.2,4.90128]
[1744618951393,0.15049982,1632.4,1632.2,9.8025]
[1744618951593,58.99619,1632.6,1632.2,9.8025]
[1744618951795,0.15109798,1632.5,1632.2,4.90122]
[1744618952600,0.15109798,1632.5,1631.7,0.7784]
[1744618952601,4.90138,1632.2,1631.7,0.7784]
[1744618952799,9.80287,1632.2,1631.8,4.90256]
[1744618953033,0.14870488,1632.1,1631.8,4.90256]
[1744618953217,5.05046488,1632.1,1631.7,5.68118]
[1744618953528,5.05536792,1632.0,1631.7,0.7784]
[1744618954022,0.15329792,1632.0,1631.8,4.9024]
[1744618954195,0.15329792,1632.0,1631.8,4.90237]
[1744618954390,6.299,1632.2,1631.8,4.90237]
[1744618954596,0.15389638,1632.1,1631.8,4.90237]
[1744618954808,11.2004,1632.2,1631.8,9.80476]
[1744618955002,0.15329792,1632.0,1631.8,9.80476]
[1744618955210,11.2004,1632.2,1631.8,9.80476]
[1744618955425,0.15269939,1631.9,1631.8,9.80476]
[1744618955633,6.299,1632.2,1631.9,4.90198]
[1744618956291,11.2004,1632.2,1631.9,4.90198]
[1744618956624,11.2004,1632.2,1631.9,4.90223]
[1744618957533,6.299,1632.2,1631.9,4.90223]
[1744618958726,6.299,1632.2,1631.9,9.80437]
[1744618958927,6.299,1632.2,1631.9,1.14753938]
[1744618959127,6.299,1632.2,1632.0,4.90184]
[1744618959334,11.20038,1632.2,1631.9,4.90224]
[1744618959510,6.299,1632.2,1631.9,4.90224]
[1744618961759,11.2004,1632.2,1631.8,4.90254]
[1744618961924,4.90208,1632.0,1631.7,0.7784]
[1744618962527,4.90208,1632.0,1631.7,5.68125]
[1744618963014,6.80989,1632.1,1631.7,5.74252955]
[1744618963210,6.299,1632.2,1631.9,4.90219]
[1744618963453,4.90079,1632.4,1632.1,4.90164]
[1744618963761,6.889377,1632.4,1632.1,4.90164]
[1744618964043,11.790327,1632.4,1632.0,5.6625]
[1744618964242,6.889377,1632.4,1632.0,10.56435]
[1744618964641,0.15517452,1632.3,1632.0,10.56435]
[1744618965020,4.90079,1632.4,1632.1,4.90156]
[1744618965223,6.399329,1632.4,1632.0,10.56431]
[1744618965424,14.9851,1632.5,1632.1,4.90152]
[1744618965623,47.796,1632.6,1632.3,4.90092]
[1744618965847,4.90046,1632.5,1632.2,4.90132]
[1744618967269,4.90046,1632.5,1632.1,4.90162]
[1744618967437,4.90098,1632.4,1632.0,5.66261]
[1744618967640,4.90106,1632.3,1632.0,5.66261]
[1744618967968,10.0554,1632.7,1632.0,0.8122]
[1744618968258,10.0554,1632.7,1632.4,4.90075]
[1744618968459,0.8201,1633.0,1632.4,4.90075]
[1744618968659,6.296,1633.1,1632.7,4.89973]
[1744618968838,6.296,1633.1,1632.8,4.89942]
[1744618969036,6.296,1633.1,1632.9,0.06123948]
[1744618969223,0.7619,1633.4,1633.0,4.89878]
[1744618969423,0.7619,1633.4,1633.0,4.89895]
[1744618969686,0.7619,1633.6,1633.2,4.89832]
[1744618969969,3.0,1633.7,1633.4,4.89774]
[1744618970738,3.0,1633.7,1633.2,5.70114]
[1744618970739,4.89688,1633.7,1633.2,5.70114]
[1744618970966,7.89719,1633.6,1633.2,5.70114]
[1744618971468,7.89719,1633.6,1633.2,10.59931]
[1744618972466,7.89719,1633.6,1633.2,6.8098905]
[1744618972667,7.89719,1633.6,1633.2,11.7080705]
[1744618973275,3.0,1633.6,1633.3,4.89805]
[1744618973639,4.89746,1633.5,1633.2,4.95939106]
[1744618973870,7.89736,1633.6,1633.2,5.64961]
[1744618974165,3.0,1633.6,1633.3,4.89803]
[1744618974378,7.0579,1633.8,1633.6,4.89701]
[1744618974590,6.296,1633.8,1633.6,4.89701]
[1744618976571,4.89526,1634.3,1633.8,4.89637]
[1744618976775,0.7588,1634.1,1633.8,4.89637]
[1744618976971,0.7588,1634.1,1633.7,0.7738]
[1744618976972,6.709533,1634.1,1633.7,5.6706]
[1744618978489,6.709533,1634.1,1633.7,5.67051]
[1744618979192,6.709533,1634.1,1633.7,10.56725]
[1744618979686,0.16273627,1634.0,1633.7,10.56725]
[1744618980475,0.16273627,1634.0,1633.7,5.67051]
[1744618980982,0.16273627,1634.0,1633.7,0.7738]
[1744618981171,4.89639,1633.9,1633.5,5.68304]
[1744618981376,0.16154225,1633.8,1633.5,5.68304]
[1744618981576,4.89639,1633.9,1633.5,5.68304]
[1744618981918,0.16154225,1633.8,1633.7,4.89685]
[1744618982071,0.16154225,1633.8,1633.7,5.876233]
[1744618982276,11.94546,1634.1,1633.7,10.773083]
[1744618982814,0.16273627,1634.0,1633.9,5.66946]
[1744618983124,3.8296,1634.4,1634.1,4.89565]
[1744618983488,0.05,1634.4,1634.2,4.89523]
[1744618983711,0.05,1634.4,1634.0,4.89578]
[1744618984025,4.8955,1634.2,1633.8,4.89651]
[1744618984176,9.7911,1634.2,1633.8,4.89651]
[1744618984381,4.8955,1634.2,1633.8,4.89651]
[1744618985230,4.8955,1634.2,1633.8,4.89645]
[1744618985711,10.853059,1634.2,1633.8,4.89645]
[1744618986012,4.89577,1634.1,1633.6,4.89715]
[1744618986175,4.89626,1633.9,1633.5,11.98654]
[1744618986377,5.69448,1634.0,1633.6,4.89687]
[1744618986573,0.7983,1634.0,1633.7,4.89661]
[1744618987001,5.69428,1634.0,1633.7,4.89661]
[1744618987311,6.753275,1634.0,1633.6,4.89714]
[1744618987515,4.89626,1633.9,1633.6,4.89714]
[1744618987684,6.753275,1634.0,1633.6,4.89714]
[1744618988213,11.649435,1634.0,1633.6,4.89714]
[1744618988414,4.8963,1633.9,1633.6,4.89714]
[1744618988584,4.8963,1633.9,1633.5,5.69552]
[1744618988778,6.0612575,1633.9,1633.4,9.79537]
[1744618988982,4.89696,1633.7,1633.3,5.66001]
[1744618989813,4.89696,1633.7,1633.3,4.89791]
[1744618990001,4.89716,1633.6,1633.3,4.89791]